bitfinex-derivatives/quotes_ETHF0:USTF0_20250616
["timestamp","ask_amount","ask_price","bid_price","bid_amount"]
[1750071778019,0.66493,2614.4,2614.3,0.6693]
[1750071780614,0.66493,2614.4,2614.3,1.43427]
[1750071782013,0.66493,2614.4,2614.3,0.6693]
[1750071782612,0.66493,2614.4,2614.3,2.57927]
[1750071785122,0.66493,2614.4,2614.3,1.8143]
[1750071785513,33.13418823,2614.4,2614.3,1.145]
[1750071785708,33.13418823,2614.4,2613.8,0.6264]
[1750071785709,0.76508,2613.9,2613.8,0.6264]
[1750071785914,0.76514,2613.8,2613.7,0.76511]
[1750071786113,0.76514,2613.7,2613.6,1.39156]
[1750071787523,0.76513,2613.8,2613.7,0.76511]
[1750071787924,0.76514,2613.7,2613.6,1.39155]
[1750071788526,0.76514,2613.7,2613.6,0.6264]
[1750071788820,3.40039823,2613.7,2613.6,0.6264]
[1750071789025,0.7652,2613.5,2613.4,0.00573329]
[1750071789827,2.0535,2613.5,2613.4,0.00573329]
[1750071790023,2.6814,2613.5,2613.4,0.00573329]
[1750071792326,0.76534,2613.0,2612.9,0.76536]
[1750071792524,0.76534,2613.0,2612.9,1.43906]
[1750071797030,0.76533,2613.1,2613.0,0.76532]
[1750071798226,0.76534,2613.0,2612.9,1.43906]
[1750071802229,2.01593329,2613.2,2613.1,0.76532]
[1750071802534,0.00573329,2613.2,2613.1,6.60837823]
[1750071802735,0.77102329,2613.2,2613.1,6.60837823]
[1750071803031,0.77102329,2613.2,2613.1,3.40057823]
[1750071803235,0.76532,2613.1,2613.0,0.76532]
[1750071803539,0.56532,2613.1,2613.0,0.76532]
[1750071803836,1.88222,2613.1,2613.0,0.76532]
[1750071805537,0.76534,2613.0,2612.9,1.43905]
[1750071810839,0.76534,2613.0,2612.9,4.07430823]
[1750071812541,0.76534,2613.0,2612.9,1.43905]
[1750071812941,1.39154,2613.0,2612.9,1.43905]
[1750071813244,1.39154,2613.0,2612.9,0.6737]
[1750071813441,1.39154,2613.0,2612.9,1.43907]
[1750071813840,1.39154,2613.0,2612.9,0.6737]
[1750071815643,0.76537,2612.9,2612.8,3.2078]
[1750071815941,2.04947,2612.9,2612.8,0.7654]
[1750071818131,0.00573329,2613.2,2613.1,0.76532]
[1750071818331,0.77102329,2613.2,2613.1,6.60837823]
[1750071818641,0.00573329,2613.2,2613.1,6.60837823]
[1750071819139,0.77102329,2613.2,2613.1,6.60837823]
[1750071819336,6.141,2613.4,2613.3,0.76526]
[1750071819535,7.83074563,2613.4,2613.3,0.76526]
[1750071819738,0.92448563,2613.4,2613.3,3.40051823]
[1750071820643,1.68971563,2613.4,2613.3,0.76526]
[1750071821343,0.76523,2613.4,2613.3,0.76526]
[1750071821838,6.90622,2613.5,2613.4,0.76523]
[1750071822144,0.00573329,2613.6,2613.5,0.7652]
[1750071822442,0.00573329,2613.6,2613.5,3.40045823]
[1750071824140,0.7652,2613.5,2613.4,3.05931318]
[1750071824339,1.43691329,2613.6,2613.5,0.7652]
[1750071825745,2.05431329,2613.6,2613.5,0.7652]
[1750071826048,0.76523,2613.5,2613.4,0.7652]
[1750071826246,2.09483,2613.5,2613.4,0.7652]
[1750071827945,8.22983,2613.5,2613.4,0.7652]
[1750071828143,0.76529,2613.3,2613.2,0.76524]
[1750071830842,0.76534,2613.2,2613.1,0.76529]
[1750071831149,2.11114,2613.2,2613.1,0.76529]
[1750071831742,0.76534,2613.1,2613.0,0.76532]
[1750071831944,3.39104,2613.1,2613.0,0.76532]
[1750071832248,2.6257,2613.1,2613.0,0.76532]
[1750071832548,6.90027,2613.3,2613.2,0.76529]
[1750071833550,0.76521,2613.5,2613.4,0.76523]
[1750071833849,6.90021,2613.5,2613.4,0.76523]
[1750071835343,3.39662329,2613.6,2613.5,0.7652]
[1750071835543,0.76523,2613.5,2613.4,0.7652]
[1750071835750,6.22283646,2613.5,2613.4,0.7652]
[1750071835945,0.76523,2613.4,2613.3,1.42774]
[1750071836248,8.22673,2613.4,2613.3,1.42774]
[1750071837450,8.22673,2613.4,2613.3,0.76524]
[1750071837944,0.76529,2613.2,2613.1,1.40268]
[1750071838948,2.09458,2613.3,2613.2,0.76529]
[1750071839154,6.90023,2613.4,2613.3,0.76526]
[1750071839343,6.135,2613.4,2613.1,0.6374]
[1750071839549,0.76529,2613.3,2613.2,0.76526]
[1750071839746,2.09459,2613.3,2613.2,0.76526]
[1750071841454,6.90024,2613.4,2613.3,0.76526]
[1750071841855,2.06644,2613.4,2613.3,0.76526]
[1750071842157,8.20144,2613.4,2613.3,0.76526]
[1750071842859,2.06644,2613.4,2613.3,0.76526]
[1750071843058,8.20144,2613.4,2613.3,0.76526]
[1750071846356,6.90024,2613.4,2613.3,0.76526]
[1750071847555,7.82455789,2613.4,2613.3,0.76526]
[1750071847959,9.17435789,2613.4,2613.3,0.76526]
[1750071848158,8.25004,2613.4,2613.3,0.76526]
[1750071848361,9.17453558,2613.4,2613.3,0.76526]
[1750071848561,8.25004,2613.4,2613.3,0.76526]
[1750071849564,9.17386997,2613.4,2613.3,0.76526]
[1750071850660,0.76532,2613.2,2613.1,0.7653]
[1750071851056,2.00922,2613.2,2613.1,0.7653]
[1750071851261,2.68172,2613.2,2613.1,0.7653]
[1750071851459,2.68172,2613.2,2612.8,2.29230673]
[1750071851460,3.82967,2613.2,2612.8,2.29230673]
[1750071851660,0.7654,2612.8,2612.7,0.77115329]
[1750071852052,1.68923148,2612.8,2612.7,0.77115329]
[1750071852454,0.7654,2612.8,2612.7,0.77115329]
[1750071853756,0.7654,2612.8,2612.7,0.00573329]
[1750071855062,0.7654,2612.8,2612.7,0.77116329]
[1750071855259,0.7654,2612.8,2612.7,3.40642152]
[1750071855459,0.7654,2612.8,2612.7,0.00573329]
[1750071855861,2.0112,2612.8,2612.7,0.00573329]
[1750071856969,2.6883,2612.8,2612.7,0.00573329]
[1750071857663,2.6883,2612.8,2612.7,3.40642152]
[1750071857664,0.7654,2612.8,2612.7,3.40642152]
[1750071858274,0.7654,2612.8,2612.7,0.77116329]
[1750071860665,0.76535,2613.0,2612.9,0.76538]
[1750071860971,0.76532,2613.2,2613.1,0.76529]
[1750071861276,0.76528,2613.3,2613.2,0.76526]
[1750071861572,6.89628,2613.3,2613.2,0.76526]
[1750071862873,0.76528,2613.3,2613.2,0.76526]
[1750071863169,6.89628,2613.3,2613.2,0.76526]
[1750071864774,6.131,2613.3,2613.2,0.76526]
[1750071864973,6.89626,2613.3,2613.2,0.76526]
[1750071865868,14.69218093,2613.3,2612.7,0.00573329]
[1750071866074,0.76549,2612.6,2612.5,0.76547]
[1750071868770,0.76552,2612.4,2612.3,0.00573329]
[1750071868972,6.89652,2612.4,2612.3,0.00573329]
[1750071869267,5.0,2612.4,2611.6,8.13536496]
[1750071869464,0.76558,2612.2,2612.1,0.76561]
[1750071869666,6.131,2612.2,2612.1,0.6436]
[1750071869865,25.63991,2612.5,2612.3,0.76553]
[1750071870065,6.131,2612.4,2612.3,0.76553]
[1750071870267,6.131,2612.4,2612.2,3.40081823]
[1750071870466,6.89654,2612.4,2612.3,0.76555]
[1750071870870,0.76554,2612.4,2612.3,0.76555]
[1750071871070,6.89654,2612.4,2612.3,0.76555]
[1750071872973,0.76556,2612.3,2612.2,0.76556]
[1750071873584,11.54779823,2612.4,2612.3,0.76555]
[1750071874084,8.147,2612.4,2612.3,0.76555]
[1750071874486,2.016,2612.4,2612.3,0.76555]
[1750071874686,0.00573329,2612.6,2612.5,0.76549]
[1750071876993,0.77119329,2612.6,2612.5,0.76549]
[1750071877193,0.00573329,2612.6,2612.5,0.76549]
[1750071877390,0.77119329,2612.6,2612.5,0.76549]
[1750071877595,0.00573329,2612.6,2612.5,0.76549]
[1750071877997,0.00573329,2612.6,2612.5,3.97329]
[1750071878296,0.77119329,2612.6,2612.5,3.97329]
[1750071880094,0.00573329,2612.6,2612.5,3.97329]
[1750071880896,0.00573329,2612.6,2612.5,0.76549]
[1750071881197,0.77119329,2612.6,2612.5,0.76549]
[1750071882398,4.74575152,2612.6,2612.5,0.76549]
[1750071882597,2.11049329,2612.6,2612.5,0.76549]
[1750071882798,2.11049329,2612.6,2612.1,0.00573329]
[1750071882799,0.76558,2612.2,2612.1,0.00573329]
[1750071882994,36.42563904,2612.2,2611.9,0.76565]
[1750071883199,0.76566,2612.0,2611.9,0.76565]
[1750071884900,2.09446,2612.0,2611.9,0.76565]
[1750071885101,0.76569,2611.9,2611.8,0.76567]
[1750071887205,0.7657,2611.8,2611.7,1.40053218]
[1750071887404,0.7657,2611.8,2611.7,0.00382218]
[1750071887905,8.2841,2611.8,2611.7,0.76955218]
[1750071888201,8.2841,2611.8,2611.7,0.00382218]
[1750071888406,0.76584,2611.3,2611.2,0.15830962]
[1750071888608,36.33189823,2611.3,2611.2,0.15448744]
[1750071889000,1.3614,2611.5,2611.2,0.15448744]
[1750071889207,0.76583,2611.4,2611.3,0.76582]
[1750071889400,6.158,2611.4,2611.3,0.76582]
[1750071889596,27.62754,2611.7,2611.6,0.76576]
[1750071889800,6.158,2611.5,2611.4,0.76581]
[1750071889998,0.76574,2611.7,2611.6,0.76576]
[1750071890303,5.12215,2611.7,2611.2,0.15448744]
[1750071890610,2.63525823,2611.3,2611.2,0.92032744]
[1750071890800,6.92384,2611.4,2611.3,0.76584]
[1750071891001,0.76584,2611.3,2611.2,0.92034744]
[1750071891304,3.40109823,2611.3,2611.2,0.15448744]
[1750071891505,6.00639823,2611.3,2611.2,0.15448744]
[1750071893907,6.00639823,2611.3,2611.2,0.92035744]
[1750071893908,33.22914,2611.3,2611.2,0.92035744]
[1750071894107,35.86439823,2611.3,2611.2,0.15448744]
[1750071894999,6.00639823,2611.3,2611.2,0.15448744]
[1750071895308,35.89139823,2611.3,2611.2,0.15448744]
[1750071895996,35.88939823,2611.3,2611.2,0.15448744]
[1750071896600,35.88939823,2611.3,2611.2,0.92035744]
[1750071896601,6.92484,2611.3,2611.2,0.92035744]
[1750071896802,26.9248,2611.4,2611.3,0.76584]
[1750071897008,3.2078,2611.4,2611.3,0.76584]
[1750071897305,9.3668,2611.4,2611.3,1.40964]
[1750071897494,3.2078,2611.4,2611.3,1.40964]
[1750071897699,10.13261,2611.4,2611.3,1.40964]
[1750071898300,3.97361,2611.4,2611.3,1.40964]
[1750071898498,10.13261,2611.4,2611.3,1.40964]
[1750071899307,3.2078,2611.4,2611.3,1.40964]
[1750071899508,9.3668,2611.4,2611.3,1.40964]
[1750071899708,10.13261,2611.4,2611.3,1.40964]
[1750071901511,3.2078,2611.4,2611.3,1.40964]
[1750071901813,0.76579,2611.6,2611.5,0.76576]
[1750071902011,30.63279,2611.6,2611.5,0.76576]
[1750071902203,0.76576,2611.7,2611.6,0.76576]
[1750071902407,6.92476,2611.7,2611.6,0.76576]
[1750071904912,7.40612913,2612.2,2611.6,0.76576]
[1750071904913,0.76559,2612.3,2612.2,0.76558]
[1750071905218,0.76558,2612.2,2612.1,0.7656]
[1750071905518,30.63457,2612.3,2612.2,0.76558]
[1750071905914,0.6179,2612.5,2612.4,0.76552]
[1750071906106,6.92449,2612.5,2612.4,0.76552]
[1750071906313,0.76549,2612.5,2612.4,0.76552]
[1750071906919,6.16473329,2612.6,2612.5,0.76549]
[1750071907419,0.00573329,2612.6,2612.5,0.76549]
[1750071907613,0.00573329,2612.6,2612.5,2.04869]
[1750071908107,0.00573329,2612.6,2612.5,0.76549]
[1750071911824,0.00573329,2612.6,2612.5,2.12379]
[1750071916918,3.97900329,2612.6,2612.5,0.76549]
[1750071917120,0.77120329,2612.6,2612.5,0.76549]
[1750071917419,0.77120329,2612.6,2612.4,0.7655]
[1750071917420,0.76553,2612.5,2612.4,0.7655]
[1750071917618,8.22783,2612.5,2612.4,0.7655]
[1750071921431,0.76564,2612.1,2612.0,0.76561]
[1750071921927,6.97264,2612.1,2612.0,0.76561]
[1750071923024,6.207,2612.1,2612.0,0.76561]
[1750071923226,5.32837,2612.3,2612.2,0.76558]
[1750071923425,32.00157,2612.3,2612.2,0.76558]
[1750071923834,10.18038,2612.3,2612.2,0.76555]
[1750071924123,6.97258,2612.3,2612.2,0.76555]
[1750071924530,8.28718,2612.3,2612.2,0.76555]
[1750071924926,24.43855,2612.4,2612.3,0.76552]
[1750071925232,30.64555,2612.4,2612.3,0.76552]
[1750071925433,31.98825,2612.4,2612.3,0.76552]
[1750071926631,31.2227,2612.4,2612.3,0.76552]
[1750071926833,4.53303329,2612.6,2612.5,0.7655]
[1750071926834,6.86033329,2612.6,2612.5,0.7655]
[1750071927033,7.62580329,2612.6,2612.5,0.7655]
[1750071927835,6.86033329,2612.6,2612.5,0.7655]
[1750071928031,6.21273329,2612.6,2612.5,0.7655]
[1750071928529,0.00573329,2612.6,2612.5,3.40447046]
[1750071932533,0.00573329,2612.6,2612.5,0.7655]
[1750071940237,0.00573329,2612.6,2612.5,3.40447046]
[1750071943443,0.76537,2613.0,2612.9,0.76538]
[1750071943632,1.691994,2613.0,2612.9,0.76538]
[1750071943831,2.982394,2613.0,2612.9,0.76538]
[1750071944736,2.98238626,2613.0,2612.9,0.76538]
[1750071945834,2.98194643,2613.0,2612.9,0.76538]
[1750071947940,0.92617643,2613.0,2612.9,0.76538]
[1750071948741,0.92617643,2613.0,2612.9,3.40435046]
[1750071949041,6.17474438,2613.2,2613.1,0.76532]
[1750071949240,0.00574438,2613.2,2613.1,3.40429046]
[1750071949545,23.153,2613.7,2613.6,0.76518]
[1750071949546,52.917,2613.7,2613.6,0.76518]
[1750071950038,53.68215,2613.7,2613.6,0.76518]
[1750071950347,54.1729,2613.7,2613.6,0.76518]
[1750071951146,52.917,2613.7,2613.6,0.76518]
[1750071951639,23.153,2613.7,2613.6,0.76518]
[1750071951940,29.322,2613.7,2613.6,0.76518]
[1750071952547,23.153,2613.7,2613.6,0.76518]
[1750071953039,29.76174438,2613.9,2613.8,0.76512]
[1750071953430,0.00574438,2613.9,2613.8,0.76512]
[1750071953846,0.77083438,2613.9,2613.8,0.76512]
[1750071954037,1.27504438,2613.9,2613.8,0.76512]
[1750071954731,0.00574438,2613.9,2613.8,0.76512]
[1750071956638,0.33580551,2614.3,2614.2,0.765]
[1750071956839,34.2522,2614.5,2614.4,0.76494]
[1750071957045,35.4983,2614.5,2614.4,0.76494]
[1750071957747,3.2078,2614.5,2614.4,0.76494]
[1750071960847,4.4401,2614.5,2614.4,0.76494]
[1750071961445,3.2078,2614.5,2614.4,0.76494]
[1750071961749,29.735,2614.6,2614.5,0.76491]
[1750071961950,29.735,2614.6,2614.5,3.40388046]
[1750071962250,29.735,2614.6,2614.5,4.02018046]
[1750071962746,29.735,2614.6,2614.5,1.38121]
[1750071963649,0.77059438,2614.7,2614.6,0.76488]
[1750071963848,1.31664438,2614.7,2614.6,0.76488]
[1750071964151,2.08149438,2614.7,2614.6,0.76488]
[1750071964346,0.76494,2614.5,2614.4,0.76489]
[1750071964549,0.76497,2614.3,2614.2,0.77072438]
[1750071964752,6.61174046,2614.3,2614.2,0.77072438]
[1750071965249,7.91514046,2614.3,2614.2,0.77072438]
[1750071965848,1.2943,2614.4,2614.3,0.76497]
[1750071966045,24.90514438,2614.7,2614.6,0.76488]
[1750071967746,1.30914438,2614.7,2614.6,0.76488]
[1750071970451,1.98764438,2614.7,2614.6,0.76488]
[1750071972153,2.75249438,2614.7,2614.6,0.76488]
[1750071972349,1.98764438,2614.7,2614.6,0.76488]
[1750071974153,2.75249438,2614.7,2614.6,0.76488]
[1750071975154,0.76492,2614.6,2614.5,0.76488]
[1750071975347,0.76497,2614.4,2614.3,0.76494]
[1750071975552,24.32297,2614.4,2614.3,0.76494]
[1750071975755,30.48797,2614.4,2614.3,0.76494]
[1750071976052,1.3429,2614.6,2614.5,0.76491]
[1750071976358,31.0719,2614.6,2614.5,0.76491]
[1750071976750,31.0749,2614.6,2614.5,0.76491]
[1750071977443,31.83978,2614.6,2614.5,0.76491]
[1750071977643,31.0749,2614.6,2614.5,0.76491]
[1750071978156,31.83978,2614.6,2614.5,0.76491]
[1750071981156,32.76196606,2614.6,2614.5,0.76491]
[1750071983150,30.65418606,2614.6,2614.5,0.76491]
[1750071984056,24.21524438,2614.7,2614.6,0.76488]
[1750071984250,25.13875595,2614.7,2614.6,0.76488]
[1750071984659,25.13910802,2614.7,2614.6,0.76488]
[1750071985249,24.46060802,2614.7,2614.6,0.76488]
[1750071985563,25.22545802,2614.7,2614.6,0.76488]
[1750071986163,24.46060802,2614.7,2614.6,0.76488]
[1750071986463,24.45760802,2614.7,2614.6,0.76488]
[1750071986664,24.45760802,2614.7,2614.5,0.6239]
[1750071986862,23.53374438,2614.7,2614.5,0.6239]
[1750071987563,0.00574438,2614.7,2614.6,2.63897046]
[1750071987763,0.93019017,2614.7,2614.6,2.63897046]
[1750071987965,0.93022363,2614.7,2614.6,2.63897046]
[1750071988164,0.00574438,2614.7,2614.6,2.63897046]
[1750071988569,23.53,2615.7,2614.6,14.64644989]
[1750071988871,0.9247551,2615.6,2615.5,2.63897046]
[1750071989259,23.53,2615.7,2615.5,2.63897046]
[1750071989467,23.53,2615.7,2615.6,0.76458]
[1750071989870,6.152,2615.8,2615.6,0.76458]
[1750071990260,6.152,2615.8,2615.7,0.76456]
[1750071990461,6.91654,2615.8,2615.7,0.76456]
[1750071990662,0.76456,2615.7,2615.6,0.76457]
[1750071991769,0.76459,2615.6,2615.5,3.40357046]
[1750071991969,0.76458,2615.7,2615.6,0.76458]
[1750071992170,0.76459,2615.6,2615.5,3.40357046]
[1750071992374,7.4778,2615.8,2615.5,2.63897046]
[1750071992570,0.76459,2615.6,2615.5,0.76461]
[1750071993375,0.76461,2615.5,2615.4,1.40873]
[1750071993673,0.00574438,2615.9,2615.4,3.28307046]
[1750071993868,6.92125438,2615.9,2615.8,0.76453]
[1750071994265,6.15674438,2615.9,2615.8,1.44283]
[1750071995571,0.00574438,2615.9,2615.8,1.44283]
[1750071996270,0.00574438,2615.9,2615.8,2.06723]
[1750071997977,0.77024438,2615.9,2615.8,2.06723]
[1750071998279,0.00574438,2615.9,2615.8,2.06723]
[1750071999478,0.00574438,2615.9,2615.8,3.31573]
[1750071999773,0.00574438,2615.9,2615.8,8.31573]
[1750072000079,0.00574438,2615.9,2615.8,10.95470046]
[1750072000376,0.00574438,2615.9,2615.8,5.95470046]
[1750072000576,0.00574438,2615.9,2615.8,3.31573]
[1750072000776,0.00574438,2615.9,2615.8,1.44283]
[1750072001177,0.77024438,2615.9,2615.8,1.44283]
[1750072002476,0.77024438,2615.9,2615.8,0.6783]
[1750072003172,2.10714438,2615.9,2615.8,0.6783]
[1750072004883,0.00574438,2615.9,2615.8,1.44283]
[1750072005186,0.77024438,2615.9,2615.8,1.44283]
[1750072005682,0.77024438,2615.9,2615.8,0.6783]
[1750072005888,0.00574438,2615.9,2615.8,1.44283]
[1750072006087,0.76455,2615.7,2615.6,0.00574438]
[1750072006479,0.76473,2615.1,2615.0,3.2078]
[1750072006680,3.2078,2615.1,2614.8,1.4412]
[1750072006981,0.76479,2614.9,2614.8,4.08017046]
[1750072007378,0.76479,2614.9,2614.8,4.08019046]
[1750072007989,0.76485,2614.7,2614.6,0.00574438]
[1750072008677,3.97265,2614.7,2614.6,0.00574438]
[1750072009075,4.58805,2614.7,2614.6,0.00574438]
[1750072009281,5.90925,2614.7,2614.6,0.00574438]
[1750072009481,12.06425,2614.7,2614.6,0.00574438]
[1750072009885,5.90925,2614.7,2614.6,0.00574438]
[1750072010184,12.06425,2614.7,2614.6,0.00574438]
[1750072010888,12.13162406,2614.7,2614.6,0.00574438]
[1750072012589,6.22337406,2614.7,2614.6,0.77061438]
[1750072012781,5.2003,2615.0,2614.6,0.00574438]
[1750072012979,6.156,2614.9,2614.8,0.76481]
[1750072013183,0.76482,2614.8,2614.7,2.63897046]
[1750072013381,1.3289,2614.8,2614.7,3.40381046]
[1750072013592,2.09372,2614.8,2614.7,2.63897046]
[1750072013787,2.09372,2614.8,2614.7,3.40381046]
[1750072014188,1.3289,2614.8,2614.7,2.63897046]
[1750072014686,2.09371,2614.8,2614.7,2.63897046]
[1750072014888,1.3289,2614.8,2614.7,2.63897046]
[1750072015192,2.09371,2614.8,2614.6,0.77059438]
[1750072015396,0.76484,2614.7,2614.6,0.77059438]
[1750072015591,2.09373,2614.8,2614.6,0.77059438]
[1750072015786,0.76484,2614.7,2614.6,0.00574438]
[1750072016285,2.09373,2614.8,2614.6,0.77060438]
[1750072016781,0.76484,2614.7,2614.6,0.77060438]
[1750072016989,2.11904,2614.7,2614.6,0.00574438]
[1750072017189,2.11904,2614.7,2614.6,0.77060438]
[1750072017389,2.11904,2614.7,2614.6,0.00574438]
[1750072017684,4.75801046,2614.7,2614.6,0.00574438]
[1750072017880,0.76502,2614.1,2614.0,0.76502]
[1750072018087,0.765,2614.2,2613.7,8.40169046]
[1750072018394,1.3542,2614.1,2614.0,0.76501]
[1750072018591,2.11921,2614.1,2614.0,0.76501]
[1750072018992,2.11921,2614.1,2613.9,2.63897046]
[1750072019193,2.11921,2614.1,2614.0,0.76504]
[1750072019789,0.76504,2614.0,2613.9,3.40402046]
[1750072019988,1.3603,2614.0,2613.9,3.40402046]
[1750072020291,2.12534,2614.0,2613.9,3.40402046]
[1750072020993,5.33314,2614.0,2613.9,3.40402046]
[1750072021192,2.12534,2614.0,2613.9,3.40402046]
[1750072022195,0.76503,2614.1,2614.0,0.76504]
[1750072023694,0.76505,2614.0,2613.9,3.40403046]
[1750072024398,0.76505,2614.0,2613.9,2.63897046]
[1750072024789,0.76505,2614.0,2613.9,3.40404046]
[1750072025092,0.76505,2614.0,2613.9,2.63897046]
[1750072025291,0.76505,2614.0,2613.9,3.40404046]
[1750072025686,0.76504,2614.1,2614.0,0.76503]
[1750072026095,0.83241406,2614.1,2614.0,0.76503]
[1750072026592,0.06737406,2614.1,2614.0,3.40400046]
[1750072026793,0.06737406,2614.1,2614.0,0.76503]
[1750072026993,0.06737406,2614.1,2614.0,2.04563]
[1750072027190,0.77069438,2614.3,2614.2,0.76498]
[1750072027392,0.77069438,2614.3,2614.2,3.40395046]
[1750072028097,0.77069438,2614.3,2613.8,0.00574438]
[1750072028098,1.9125,2614.2,2613.8,0.00574438]
[1750072028300,1.91288,2613.7,2613.2,0.6188]
[1750072028593,0.76525,2613.3,2613.2,1.38406]
[1750072028901,0.76521,2613.4,2613.2,1.38406]
[1750072029397,3.2078,2613.5,2613.3,2.63897046]
[1750072029590,0.76522,2613.4,2613.3,3.40419046]
[1750072029896,0.76522,2613.4,2613.3,2.63897046]
[1750072030694,3.2078,2613.5,2613.2,0.6188]
[1750072030898,0.76525,2613.3,2613.2,0.6188]
[1750072031802,2.02594,2613.4,2613.2,0.6188]
[1750072032095,0.76524,2613.4,2613.3,2.63897046]
[1750072032694,0.76524,2613.4,2613.2,1.38405]
[1750072032695,0.76525,2613.3,2613.2,1.38405]
[1750072032900,3.97305,2613.3,2613.2,0.6188]
[1750072033091,3.97305,2613.3,2613.2,1.38407]
[1750072033295,3.97305,2613.3,2613.2,0.6188]
[1750072033497,0.7653,2613.1,2613.0,0.00574438]
[1750072033993,0.7653,2613.1,2613.0,0.77107438]
[1750072034500,0.7653,2613.1,2613.0,0.00574438]
[1750072038300,2.0798,2613.1,2613.0,0.00574438]
[1750072038500,8.2388,2613.1,2613.0,0.00574438]
[1750072039003,1.91337,2613.0,2612.5,0.6707]
[1750072039199,0.76542,2612.7,2612.6,0.6279]
[1750072039503,0.76542,2612.7,2612.6,1.39335]
[1750072039905,0.76541,2612.8,2612.7,0.76541]
[1750072040605,0.76541,2612.8,2612.7,3.40438046]
[1750072042113,3.97319,2612.9,2612.8,0.76539]
[1750072042296,0.76539,2612.9,2612.8,0.76539]
[1750072042693,0.68664438,2613.0,2612.9,0.76536]
[1750072042694,0.00574438,2613.0,2612.9,0.76536]
[1750072043105,0.00574438,2613.0,2612.9,2.09836]
[1750072043410,0.00574438,2613.0,2612.9,4.73733046]
[1750072044811,0.00574438,2613.0,2612.9,7.58096457]
[1750072050511,0.76523,2613.4,2613.3,0.76524]
[1750072050713,0.76521,2613.5,2613.4,0.76519]
[1750072052507,3.97296,2613.6,2613.5,0.76519]
[1750072053714,0.76521,2613.5,2613.4,0.76519]
[1750072054315,2.06251,2613.5,2613.4,0.76519]
[1750072057714,0.76524,2613.3,2613.2,3.21354438]
[1750072058012,0.76536,2612.9,2612.8,2.29116665]
[1750072058214,0.76539,2612.8,2612.7,2.29116665]
[1750072058411,0.76538,2612.9,2612.6,7.77377122]
[1750072058717,0.76538,2612.9,2612.8,0.76536]
[1750072059917,0.76539,2612.8,2612.7,3.9732]
[1750072060324,0.76542,2612.7,2612.6,3.05660665]
[1750072061711,0.76545,2612.6,2612.5,2.90866665]
[1750072062117,0.76545,2612.6,2612.5,0.6175]
[1750072062520,0.76544,2612.7,2612.5,0.6175]
[1750072062822,0.76544,2612.7,2612.6,0.76542]
[1750072064217,0.76541,2612.8,2612.7,0.7654]
[1750072064416,0.76544,2612.7,2612.6,0.76542]
[1750072064818,0.76544,2612.7,2612.6,3.40253729]
[1750072066724,0.6159,2612.8,2612.5,0.6175]
[1750072067031,0.6159,2612.8,2612.3,2.92916665]
[1750072067032,0.76552,2612.4,2612.3,0.7655]
[1750072067226,1.91371,2612.5,2612.1,0.6247]
[1750072067419,0.76556,2612.2,2612.1,1.39027]
[1750072067620,3.2078,2612.3,2611.9,2.29116665]
[1750072067822,0.76562,2612.0,2611.9,0.76564]
[1750072068021,3.97342,2612.0,2611.9,0.76564]
[1750072068221,0.76568,2611.9,2611.8,0.76566]
[1750072068526,1.2542,2611.9,2611.8,0.76566]
[1750072068729,3.97343,2612.0,2611.9,0.76565]
[1750072069928,2.01981,2612.1,2612.0,0.76562]
[1750072070230,0.76565,2612.0,2611.9,0.76563]
[1750072070528,2.01985,2612.0,2611.9,0.76563]
[1750072070724,0.76568,2611.8,2611.7,4.5982]
[1750072071033,0.76576,2611.6,2611.5,0.76575]
[1750072071522,2.01993,2611.7,2611.6,0.76574]
[1750072073535,1.2818,2611.9,2611.3,3.8458]
[1750072073741,1.3332,2612.2,2612.1,0.76559]
[1750072074535,10.01964438,2612.4,2612.3,0.76553]
[1750072074536,10.78516438,2612.4,2612.3,0.76553]
[1750072074734,10.78516438,2612.4,2612.0,2.53245]
[1750072074735,10.01964438,2612.4,2612.0,2.53245]
[1750072074936,12.05039438,2612.4,2612.3,0.76553]
[1750072076240,8.07704438,2612.4,2612.3,0.76553]
[1750072076441,11.28484438,2612.4,2612.0,3.8262]
[1750072076642,0.76555,2612.3,2612.2,0.76554]
[1750072076833,2.03075,2612.3,2612.2,0.76554]
[1750072077244,1.2652,2612.3,2611.7,0.6664]
[1750072077439,1.2652,2612.3,2612.0,0.76561]
[1750072077440,3.97342,2612.1,2612.0,0.76561]
[1750072077745,0.76565,2612.0,2611.9,0.76563]
[1750072077936,2.07925,2612.0,2611.9,0.76563]
[1750072078443,2.07925,2612.0,2611.7,3.25277]
[1750072078444,0.76567,2611.9,2611.8,0.76566]
[1750072078644,2.07927,2611.9,2611.8,0.76566]
[1750072079139,3.22779,2611.9,2611.3,3.2078]
[1750072079346,0.7658,2611.4,2611.3,1.43791]
[1750072079735,0.76579,2611.5,2611.4,0.76578]
[1750072079939,2.07939,2611.5,2611.4,0.76578]
[1750072080539,0.7658,2611.4,2611.3,1.4379]
[1750072081746,2.07938,2611.5,2611.4,0.7658]
[1750072081948,1.43175,2611.6,2611.5,0.76577]
[1750072083250,5.1986,2611.8,2611.6,0.76571]
[1750072083446,0.76573,2611.7,2611.6,0.76571]
[1750072083747,5.96429,2611.8,2611.7,0.76571]
[1750072083949,1.43214,2612.0,2611.8,0.76568]
[1750072084145,7.57314,2612.0,2611.8,0.76568]
[1750072084350,0.83302406,2611.9,2611.8,0.76568]
[1750072084549,2.18822406,2611.9,2611.8,0.76568]
[1750072085046,2.12085,2611.9,2611.8,0.76568]
[1750072085744,1.3552,2611.9,2611.8,0.76568]
[1750072086750,6.8075,2612.0,2611.9,0.76565]
[1750072087249,7.57312,2612.0,2611.9,0.76565]
[1750072087747,8.82482,2612.0,2611.9,0.76565]
[1750072090650,7.56239,2612.2,2612.1,0.76559]
[1750072091551,8.88009,2612.2,2612.1,0.76559]
[1750072092454,7.53457,2612.3,2612.2,0.76556]
[1750072092656,8.85227,2612.3,2612.2,0.76556]